Cogmind - Beta 9.6 @@@ ROGUE MODE // 2020.08.04 @ 11:49:04 Player: Henry Result: Self-destructed Performance ------------- Evolutions (1) 500 Regions Visited (2) 400 Robots Destroyed (17) 85 Value Destroyed (387) 387 Prototype IDs (0) 0 Alien Tech Used (0) 0 Bonus (0) 0 TOTAL SCORE: 1372 Bonus ------- None Cogmind --------- Core Integrity 63/400 Matter 287/300 Energy 100/100 System Corruption 1% Temperature Cool (6) Movement Core (550) Ox10 Location -9/Materials Parts ------- > --- POWER (1) -------- (None) > --- PROPULSION (4) --- (None) > --- UTILITY (2) ------ High-capacity Storage Unit Signal Interpreter > --- WEAPON (2) ------- (None) > --- INVENTORY (12) --- Heat Sink Improved Heat Sink Small Storage Unit Peak State ------------ > --- POWER ------------ Light Ion Engine > --- PROPULSION ------- Aluminum Leg Aluminum Leg Aluminum Leg Aluminum Leg > --- UTILITY ---------- High-capacity Storage Unit Signal Interpreter > --- WEAPON ----------- Assault Rifle Light Assault Rifle > --- INVENTORY -------- Aluminum Leg Heat Sink Improved Heat Sink Small Storage Unit [Rating: 9] Favorites ----------- Power Light Ion Engine Engine Light Ion Engine Propulsion Aluminum Leg Leg Aluminum Leg Utility High-capacity Storage Unit Device Improved Heat Sink Storage High-capacity Storage Unit Processor Signal Interpreter Weapon Light Assault Rifle Energy Gun Beam Rifle Ballistic Gun Light Assault Rifle Build | -11 -10 -9 ------- Run | Scr Mat Mat Slots Evolved 2 | . . 2 Power . | . . . Propulsion 2 | . . 2 Utility . | . . . Weapon . | . . . Parts Attached 24 | 6 9 9 Power 3 | 1 . 2 Engine 3 | 1 . 2 Core . | . . . Reactor . | . . . Propulsion 10 | 2 2 6 Treads . | . . . Leg 10 | 2 2 6 Wheel . | . . . Hover . | . . . Flight . | . . . Utility 6 | 1 5 . Device 1 | . 1 . Storage 4 | 1 3 . Processor 1 | . 1 . Hackware . | . . . Protection . | . . . Artifact . | . . . Weapon 5 | 2 2 1 Energy Gun 1 | . . 1 Energy Cannon . | . . . Ballistic Gun 4 | 2 2 . Ballistic Cannon . | . . . Launcher . | . . . Special Weapon . | . . . Impact Weapon . | . . . Slashing Weapon . | . . . Piercing Weapon . | . . . Special Melee Weapon . | . . . Unidentified Prototypes . | . . . Parts Lost 15 | . 3 12 Power 3 | . 1 2 Propulsion 7 | . . 7 Utility . | . . . Weapon 5 | . 2 3 Highest Loss Streak 11 | . 3 11 Average Slot Usage (%) 85 | . 83 89 Engine 8 | . 8 9 Leg 30 | . 28 37 Device 2 | . 3 . Storage 13 | . 14 11 Processor 3 | . 1 11 Ballistic Gun 25 | . 27 18 Naked Turns . | . . . Heaviest Build 38 | 9 37 38 Greatest Support 40 | 20 20 40 Greatest Overweight (x) 12 | 2 1 12 Average Overweight (x) . | . . . Largest Inventory Capacity 18 | 6 18 12 Average Capacity 10 | 5 10 12 Most Carried 7 | 2 7 6 Average Carried 4 | 1 5 4 Final Capacity 12 | 6 12 12 Final Carried 7 | 2 7 3 Class Distribution -------------------- 80% | Mutant 19% | Scavenger-Mutant Dominant Class ---------------- Mutant | -10/Materials Scavenger-Mutant | -9/Materials Resources | -11 -10 -9 ----------- Run | Scr Mat Mat Matter Collected 631 | 260 142 229 Remotely . | . . . Salvage Created 528 | . 150 378 Parts 42 | . 15 27 Haulers Intercepted . | . . . Recyclers Shooed 2 | . . 2 Parts Field Recycled . | . . . Retrieved Matter . | . . . Parts Self-Destructed . | . . . Prevented . | . . . Kills | -11 -10 -9 ------- Run | Scr Mat Mat Combat Hostiles Destroyed 13 | . 5 8 Guns 13 | . 5 8 Classes Destroyed 5 | . 3 2 Recycler 1 | . . 1 Watcher 3 | . 1 2 Swarmer 6 | . 3 3 Grunt 5 | . 2 3 Sentry 2 | . . 2 Best Kill Streak 6 | . 4 6 Combat Bots Only 4 | . 4 4 Max Kills in Single Turn 1 | . 1 1 Gunslinging . | . . . Exploded . | . . . Melee . | . . . Uniques/NPCs Destroyed . | . . . Combat | -11 -10 -9 -------- Run | Scr Mat Mat Damage Taken 1530 | . 440 1090 Core 388 | . 51 337 Absorbed by Shields . | . . . Core Remaining (%) 89 | 100 79 . Volleys Fired 90 | . 34 56 Largest 2 | . 2 2 Hottest 56 | . 40 56 Shots Fired 166 | . 63 103 Gun 166 | . 63 103 Cannon . | . . . Launcher . | . . . Special . | . . . Kinetic 159 | . 63 96 Thermal 7 | . . 7 Explosive . | . . . Electromagnetic . | . . . Robot Hit Streak 14 | . 7 14 Robot Miss Streak 4 | . 4 3 Penetration Max . | . . . Secondary Targets 1 | . . 1 Max Gunslinging Chain 1 | . . 1 Shots Hit Robots 113 | . 43 70 Core Hits 40 | . 16 24 Critical Hits . | . . . Critical Kills . | . . . Critical Parts Destroyed . | . . . Melee Attacks . | . . . Impact . | . . . Slashing . | . . . Piercing . | . . . Sneak Attacks . | . . . Combat Hostiles . | . . . Follow-up Attacks . | . . . Damage Inflicted 1060 | . 342 718 Guns 1060 | . 342 718 Cannons . | . . . Explosions . | . . . Melee . | . . . Ramming . | . . . Kinetic 1017 | . 342 675 Thermal 43 | . . 43 Explosive . | . . . Electromagnetic . | . . . Impact . | . . . Slashing . | . . . Piercing . | . . . Highest Corruption 1 | . . 1 Average Corruption 1 | . . 1 Corruption Purged . | . . . Overload Shots . | . . . Overflow Damage . | . . . Projectiles . | . . . Explosions . | . . . Melee . | . . . Knockbacks . | . . . Impact . | . . . Kinetic . | . . . Secondary . | . . . Self-Inflicted Damage . | . . . Shots . | . . . Rammed 1 | . . 1 Targets Rammed 1 | . . 1 Kicked . | . . . Crushed . | . . . Highest Temperature 130 | . 18 130 Average Temperature 32 | . 10 40 Received Heat Transfer 522 | . 78 444 Siege Activations . | . . . Robots Corrupted . | . . . Combat Hostiles . | . . . Parts Fried . | . . . Impact Corruptions . | . . . Robots Melted . | . . . Combat Hostiles . | . . . Parts Melted . | . . . Heat Transferred 111 | . . 111 Parts Sabotaged . | . . . Parts Stolen . | . . . Parts Stripped . | . . . Power Chain Reactions . | . . . Missiles Intercepted . | . . . Alert | -11 -10 -9 ------- Run | Scr Mat Mat Peak Influence 198 | . 90 198 Average Influence 49 | . 35 96 Maximum Alert Level . | . . . Low Security (%) 100 | 100 100 100 Level 1 . | . . . Level 2 . | . . . Level 3 . | . . . Level 4 . | . . . Level 5 . | . . . High Security . | . . . Max Security . | . . . Squads Dispatched 2 | . 2 . Investigation 1 | . 1 . Extermination . | . . . Reinforcement 1 | . 1 . Assault . | . . . Garrison . | . . . Intercept . | . . . Construction Impeded . | . . . Haulers Reinforced . | . . . Stealth | -11 -10 -9 --------- Run | Scr Mat Mat Distress Signals 5 | . . 5 Communications Jammed . | . . . Distress Signals . | . . . Times Spotted 29 | . 12 17 Peak Tracking Total 6 | . 5 6 Tactical Retreats 1 | . . 1 Traps | -11 -10 -9 ------- Run | Scr Mat Mat Traps Triggered 1 | . 1 . Indirectly . | . . . Trap Hack Attempts . | . . . Triggered . | . . . Disarmed . | . . . Reprogrammed . | . . . Reused . | . . . Traps Extracted . | . . . Installed . | . . . Triggered . | . . . Machines | -11 -10 -9 ---------- Run | Scr Mat Mat Machines Disabled . | . . . Max in Single Turn . | . . . Machines Sabotaged . | . . . Garrisons Compromised . | . . . Overloaded Fab Kills . | . . . Fab Network Shutdowns . | . . . Hacking | -11 -10 -9 --------- Run | Scr Mat Mat Machines Accessed . | . . . Terminals . | . . . Fabricators . | . . . Repair Stations . | . . . Recycling Units . | . . . Scanalyzers . | . . . Garrison Access . | . . . Total Hacks . | . . . Successful . | . . . Failed . | . . . Catastrophic . | . . . Database Lockouts . | . . . Manual . | . . . Terminals . | . . . Fabricators . | . . . Repair Stations . | . . . Recycling Units . | . . . Scanalyzers . | . . . Garrison Access . | . . . Terminal Hacks . | . . . Fabricator Hacks . | . . . Repair Station Hacks . | . . . Recycling Unit Hacks . | . . . Scanalyzer . | . . . Garrison Access Hacks . | . . . Unauthorized Hacks . | . . . Terminals . | . . . Fabricators . | . . . Repair Stations . | . . . Recycling Units . | . . . Scanalyzers . | . . . Garrison Access . | . . . Data Cores Recovered . | . . . Used . | . . . Hacking Detections . | . . . Full Trace Events . | . . . Feedback Events . | . . . Feedback Blocked . | . . . Robot Schematics Acquired . | . . . Robots Built . | . . . Matter . | . . . Time . | . . . Total Robot Build Rating . | . . . Part Schematics Acquired . | . . . Parts Built . | . . . Matter . | . . . Time . | . . . Total Part Build Rating . | . . . Parts Repaired . | . . . Time . | . . . Parts Recycled . | . . . Recycled Matter . | . . . Retrieved Matter . | . . . Retrieved Components . | . . . Parts Scanalyzed . | . . . Part Schematics Acquired . | . . . Parts Damaged . | . . . Bothacking | -11 -10 -9 ------------ Run | Scr Mat Mat Used RIF Installer . | . . . Robots Hacked . | . . . Non-combat . | . . . Combat . | . . . Robot Hacks Applied . | . . . Relay Couplers Released . | . . . Robots Rewired . | . . . Allies Hacked . | . . . Hacks Repelled . | . . . Allies | -11 -10 -9 -------- Run | Scr Mat Mat Total Allies . | . . . Largest Group . | . . . Highest-Rated Group . | . . . Highest-Rated Ally . | . . . Total Orders . | . . . Ally Attacks . | . . . Total Damage . | . . . Kills . | . . . Allies Corrupted . | . . . Allies Melted . | . . . Intel | -11 -10 -9 ------- Run | Scr Mat Mat Robot Analysis Total . | . . . Derelict Logs Recovered . | . . . Drone Launches . | . . . Drone Recoveries . | . . . Exploration | -11 -10 -9 ------------- Run | Scr Mat Mat Turns Passed 923 | 51 631 241 Spaces Moved 445 | 38 356 51 Core 10 | 9 . 1 Treads . | . . . Legs 435 | 29 356 50 Wheels . | . . . Hover . | . . . Flight . | . . . Fastest Speed 50 | 50 120 120 Average Speed 139 | 106 144 132 Slowest Speed 650 | 150 150 650 Overloaded Moves . | . . . Propulsion Burnouts . | . . . Robots Hopped . | . . . Cave-ins Triggered . | . . . Exploration Rate (%) 25 | 3 61 13 Regions Visited 2 Branch Regions . Pre-discovered Areas . | . . . Known Exits Taken 1 | . 1 . Unknown Exits Taken 1 | 1 . . Scrap Searched . | . . . Spaces Dug . | . . . Terrain Destroyed . | . . . Melee . | . . . Projectile . | . . . AOE . | . . . Actions | -11 -10 -9 --------- Run | Scr Mat Mat Total 589 | 45 420 124 Wait 21 | . 14 7 Move 443 | 37 355 51 Hop . | . . . Pick Up 5 | 2 3 . Fast Attach 13 | 6 4 3 Attach 7 | . 2 5 Detach 3 | . 3 . Swap 4 | . 3 1 Drop 2 | . 2 . Fire 90 | . 34 56 Melee . | . . . Ram 1 | . . 1 Kick . | . . . Crush . | . . . Escape Stasis . | . . . Rewire . | . . . Trap . | . . . Miscellaneous . | . . . Route ------- -11/Scrapyard -10/Materials (discovered 3 exits: *Mat x2 / [*Min]) -9/Materials History --------- Turn | Location | Event 11 | -11/Scrapyard | Discovered new exit (range 16) 52 | -11/Scrapyard | Entered Materials 68 | -10/Materials | Discovered new exit (range 12) 306 | -10/Materials | Discovered new exit (range 14) 309 | -10/Materials | Build established: Mutant 492 | -10/Materials | Lost 3 parts (1p2w) 539 | -10/Materials | Discovered new exit (range 16) 682 | -10/Materials | Identified exit to Materials 683 | -10/Materials | Entered another Materials area 683 | -9/Materials | Evolved 2 slots: Propulsion x2 905 | -9/Materials | Core integrity fell below 50% 922 | -9/Materials | Core integrity fell below 20% 924 | -9/Materials | Self-destructed Last Messages --------------- 00873_ K-01 Serf collects debris. 00875_ W-16 Scout sends out distress signal. 00875_ R-06 Scavenger collects Lgt. Treads. 00875_ Acquired 56 matter. 00878_ K-01 Serf collects debris. 00879_ R-06 Scavenger collects Heat Sink. 00879_ W-16 Scout destroyed. 00882_ W-16 Scout sends out distress signal. 00883_ Acquired 11 matter. 00886_ Aluminum Leg destroyed. 00887_ Acquired Lgt. Ion Engine. 00888_ Aluminum Leg destroyed. 00889_ Lgt. Assault Rifle destroyed. 00893_ Assault Rifle destroyed. 00896_ Acquired Beam Rifle. 00902_ Aluminum Leg destroyed. 00914_ Beam Rifle destroyed. 00918_ Slammed into G-34 Mercenary. 00918_ Destabilizing: System corrupted (+1). 00924_ Lgt. Ion Engine destroyed. Map ----- +----------------------------------------------------+ | ?????????????????????????????????????????????????? | | ?????????????????????????????????????????????????? | | ?????????????????????????????????????????????????? | | ?????????????????????????????????????????????????? | | ?????????????????????????????????????????????????? | | ?????????????????????????????????????????????????? | | ?????????????????????????????????????????????????? | | ?????????????????????????????????????????????????? | | ?????????????????????????????????????????????????? | | ?????????????????????????????????????????????????? | | ???????????????????????? ??????????????????????? | | ???????????????????????? ??????????????????????? | | ???????????????????????? ??????????????????????? | | ?????????????? ??????# #?????????????????????? | | ????????????? ??????# #?????????????????????? | | ????????????? ??????# #?????????????????????? | | ????????????? ??????# ##????????????????????? | | ????????????? ??????# ?????????????????????? | | ?????????????# ??????# ?????????????????????? | | ?????????????# ??????# ?????????????????????? | | ?????????????# #?????# #?????????????????????? | | ?????????????# +?????# ####??????????????????? | | ?????????????# #?????# # ???????????????????? | | ?????????????# #?????# k/ ???#????????????????? | | ?????????????# #?????#g!g#?? #????????????????? | | ?????????????# ########@## #????????????????? | | ?????????????# # !!!g/ #????????????????? | | ?????????????# # ==# #????????????????? | | ?????????????# %%+% #? #????????????????? | | ?????????????# [ # #?? #????????????????? | | ???????! ???# % ###########????#????????????????? | | ?????? ??## ##??????????????????????????????? | | ??????# #?# %############???????????????????? | | ??????+ #?# ????????????????? | | ??????# #?# ????????????????? | | ??????# #?# ????????????????? | | ??????# #?# ###+##########?????????????????? | | ??????# #?## ##?? ?????????????????????????? | | ??????# #??# #???? ????????????????????????? | | ??????# #??# #????? ??????????????????????? | | ??????# #??# #?????? ?????????????????????? | | ??????# #??# #??????? ????????????????????? | | ####??# #??# #???????? !???????????????????? | | ?# #### ############????????????????????? | | """ ?# ?????????????????? | | """ # ?????????????????? | | """ # ?????????????????? | | + ###+#############/###??????????????????? | | """ # # ?????????????????????????????????? | | """ # # """ #???????????????????????????????? | +----------------------------------------------------+ Best States ------------- Heat Dissipation 39 Energy Generation 10 Energy Capacity 125 Matter Stores 300 Matter Capacity 300 Sight Range 16 Terrain Scan Density 10 Evasion (%) 40 Item Schematics ----------------- None Robot Schematics ------------------ None Fabricated ------------ Nothing Alien Tech Used ----------------- None Achievements -------------- None Challenges ------------ None Game ------ Seed CoordinationHellfireAxe Manual? 0 Play Time 00:08:03 Cumulative 406.9 hours Start 2020.08.04 @ 11:43:06 End 2020.08.04 @ 11:49:04 Sessions 1 Manual Loads 0 Difficulty Rogue Special Mode None Game No. 96 Rogue 96 Adventurer 0 Explorer 0 Win Type - Total 0 Types 0/0/0/0/0/0/0 Lore% 19 Gallery% 43 Achievement% 17 Wizard Run 0 Options --------- ASCII 0 Keyboard 1 Movement Numpad Keybinds 0 Fullscreen 2 Font 18/X11Bold Map View 76x50 Tactical HUD 1 Map Filters NONE Filters NONE Steam 1 RUN: 39abd7f5-6142-497d-a39c-483171b4143e